Cogmind - Beta 17 @@@ ROGUE MODE // 2026.07.02 @ 16:39:28 Player: Dull Result: Destroyed by Autobeam Turret with Autobeam Performance ------------- Evolutions (0) 0 Regions Visited (2) 400 Robots Destroyed (35) 175 Value Destroyed (945) 945 Prototype IDs (0) 0 Alien Tech Used (0) 0 Bonus (0) 0 TOTAL SCORE: 1520 Bonus ------- None Cogmind --------- Core Integrity 0/250 Matter 248/300 Energy 100/100 System Corruption 0% Temperature Cool (6) Movement Rolling (120) Ox1 Location -10/Subcaves Parts ------- > --- POWER (1) -------- Subdweller Power Source > --- PROPULSION (2) --- Subdweller Monowheel Subdweller Monowheel > --- UTILITY (2) ------ Scrap Shield > --- WEAPON (2) ------- Heavy Assault Rifle Barrage Gun > --- INVENTORY (5) ---- High-capacity Storage Unit Shield Generator Assault Rifle Slug Cannon Peak State ------------ > --- POWER ------------ Subdweller Power Source > --- PROPULSION ------- Subdweller Monowheel Subdweller Monowheel > --- UTILITY ---------- Scrap Shield > --- WEAPON ----------- Heavy Assault Rifle Barrage Gun > --- INVENTORY -------- Subdweller Monowheel High-capacity Storage Unit Shield Generator Assault Rifle Slug Cannon [Rating: 16] Favorites ----------- Power Light Nuclear Core Engine Subdweller Power Source Power Core Light Nuclear Core Propulsion Light Treads Treads Light Treads Leg Aluminum Leg Wheel Subdweller Monowheel Utility Shield Generator Device Shield Generator Storage High-capacity Storage Unit Protection Scrap Shield Weapon Assault Rifle Ballistic Gun Assault Rifle Ballistic Cannon Slug Cannon Impact Weapon Maul Build | -11 -10 -10 ------- Run | Yrd Mat Sub Slots Evolved . | . . . Power . | . . . Propulsion . | . . . Utility . | . . . Weapon . | . . . Parts Attached 28 | 2 9 17 Power 6 | . 2 4 Engine 5 | . 1 4 Core 1 | . 1 . Reactor . | . . . Propulsion 7 | 2 . 5 Treads 2 | 2 . . Leg . | . . . Wheel 5 | . . 5 Hover . | . . . Flight . | . . . Utility 6 | . 4 2 Device 1 | . 1 . Storage 2 | . 2 . Processor . | . . . Hackware . | . . . Protection 3 | . 1 2 Artifact . | . . . Weapon 9 | . 3 6 Energy Gun . | . . . Energy Cannon . | . . . Ballistic Gun 7 | . 2 5 Ballistic Cannon 1 | . . 1 Launcher . | . . . Special Weapon . | . . . Impact Weapon 1 | . 1 . Slashing Weapon . | . . . Piercing Weapon . | . . . Special Melee Weapon . | . . . Unidentified Prototypes . | . . . Parts Lost 11 | . . 11 Power 1 | . . 1 Propulsion 2 | . . 2 Utility 3 | . . 3 Weapon 5 | . . 5 Highest Loss Streak 7 | . . 7 To Critical Strikes 1 | . . 1 Average Backups 7 | 6 10 5 Power . | 1 1 . Propulsion 1 | 4 2 . Utility 1 | . 1 2 Weapon 3 | 1 5 2 Tool/Special . | . . . Unused Backups 10 | . 7 3 Power 1 | . 1 . Propulsion 3 | . 2 1 Utility 4 | . 3 1 Weapon 2 | . 1 1 Tool/Special . | . . . Average Slot Usage (%) 87 | . 98 76 Engine 7 | . 4 10 Core 5 | . 9 . Treads 18 | . 27 10 Wheel 8 | . . 16 Device 6 | . 11 . Storage 7 | . 14 . Protection 6 | . 1 11 Ballistic Gun 23 | . 27 19 Ballistic Cannon 2 | . . 4 Peak Build Rating 16 | 6 12 16 Average Rating 11 | 6 10 12 On Entrance 7 | 6 6 11 Avg Prop Armor Cover (%) 3 | . . 3 Naked Turns . | . . . Heaviest Build 51 | 11 51 51 Greatest Support 40 | 40 40 40 Greatest Overweight (x) 2 | . 1 2 Average Overweight (x) . | . . 1 Largest Inventory Capacity 20 | 8 20 20 Average Capacity 10 | 8 14 5 Most Carried 15 | 6 14 15 Average Carried 7 | 6 10 5 Final Capacity 20 | 8 20 5 Final Carried 14 | 6 14 4 Class Distribution -------------------- 73% | Mutant 21% | Subdweller-Mutant 4% | Scavenger-Mutant Dominant Class ---------------- Mutant | -10/Materials Mutant | -10/Subcaves Resources | -11 -10 -10 ----------- Run | Yrd Mat Sub Matter Collected 1499 | 179 483 837 Remotely . | . . . Salvage Created 1055 | . 565 490 Parts 76 | . 38 38 Haulers Intercepted 2 | . 2 . Recyclers Shooed . | . . . Parts Field Recycled . | . . . Retrieved Matter . | . . . Parts Self-Destructed 13 | . . 13 Prevented . | . . . Parts Restored . | . . . Kills | -11 -10 -10 ------- Run | Yrd Mat Sub Combat Hostiles Destroyed 30 | . 13 17 Guns 28 | . 13 15 Cannons 2 | . . 2 Classes Destroyed 6 | . 5 1 Hauler 2 | . 2 . Watcher 3 | . 3 . Swarmer 10 | . 5 5 Grunt 8 | . 7 1 Sentry 1 | . . 1 Subdweller 11 | . 1 10 Best Kill Streak 3 | . 3 3 Combat Bots Only 3 | . 3 3 Max Kills in Single Turn 2 | . 2 1 Gunslinging 1 | . 1 . Exploded . | . . . Melee . | . . . Uniques/NPCs Destroyed . | . . . Combat | -11 -10 -10 -------- Run | Yrd Mat Sub Hostile Shots Fired 168 | . 43 125 Missed 44 | . 10 34 Hits 124 | . 33 91 Projectile 124 | . 33 91 Critical Strikes 4 | . . 4 Damage Taken 1853 | . 295 1558 Core 250 | . 24 226 Absorbed by Shields 109 | . 60 49 Redirected to Shielding 14 | . 14 . Regen/Repaired (Parts) 58 | . 58 . Core Remaining (%) 100 | 100 . . Volleys Fired 168 | . 57 111 Largest 2 | . 2 2 Hottest 60 | . 40 60 Shots Fired 295 | . 114 181 Gun 247 | . 114 133 Cannon 48 | . . 48 Launcher . | . . . Special . | . . . Kinetic 295 | . 114 181 Thermal . | . . . Explosive . | . . . Electromagnetic . | . . . Robot Hit Streak 16 | . 14 16 Robot Miss Streak 5 | . 5 3 Penetration Max . | . . . Secondary Targets 2 | . 1 1 Max Gunslinging Chain 1 | . 1 1 Shots Hit Robots 185 | . 72 113 Core Hits 62 | . 29 33 Critical Kills 3 | . 1 2 Critical Parts Destroyed 1 | . . 1 Critical Strikes 10 | . 1 9 Destroy 10 | . 1 9 Melee Attacks 1 | . 1 . Impact 1 | . 1 . Slashing . | . . . Piercing . | . . . Sneak Attacks . | . . . Combat Hostiles . | . . . Follow-up Attacks . | . . . Damage Inflicted 3065 | . 904 2161 Guns 2279 | . 904 1375 Cannons 786 | . . 786 Explosions . | . . . Melee . | . . . Ramming . | . . . Kinetic 3065 | . 904 2161 Thermal . | . . . Explosive . | . . . Electromagnetic . | . . . Impact . | . . . Slashing . | . . . Piercing . | . . . Highest Corruption . | . . . Average Corruption . | . . . Corruption Purged . | . . . Corruption Blocked . | . . . Overload Shots . | . . . Overflow Damage . | . . . Projectiles . | . . . Explosions . | . . . Melee . | . . . Knockbacks 7 | . . 7 Impact . | . . . Kinetic 7 | . . 7 Secondary . | . . . Self-Inflicted Damage . | . . . Shots . | . . . Rammed . | . . . Targets Rammed . | . . . Kicked . | . . . Crushed . | . . . Highest Temperature 16 | . . 16 Average Temperature 10 | . . 10 Received Heat Transfer 356 | . 110 246 Siege Activations . | . . . Martial Activations . | . . . Shielding Activations . | . . . Robots Disrupted . | . . . Combat Hostiles . | . . . Robots Corrupted . | . . . Combat Hostiles . | . . . Parts Fried . | . . . Impact Corruptions . | . . . Robots Melted . | . . . Combat Hostiles . | . . . Parts Melted 2 | . . 2 Heat Transferred . | . . . Parts Sabotaged . | . . . Parts Stolen . | . . . Parts Stripped . | . . . Power Chain Reactions . | . . . Alert | -11 -10 -10 ------- Run | Yrd Mat Sub Maximum Alert Level . | . . . Low Security (%) 100 | 100 100 . Level 1 . | . . . Level 2 . | . . . Level 3 . | . . . Level 4 . | . . . Level 5 . | . . . High Security . | . . . Max Security . | . . . Peak Influence 104 | . 104 . Initial . | . . . Average 23 | . 23 . Influence Increases 572 | . 382 190 Destroy 0b10 Robot/C 380 | . 240 140 Destroy 0b10 Robot/NC 25 | . 25 . Destroy Leader 70 | . 50 20 Successful Hack 18 | . 18 . Disable Machine 15 | . 15 . Destroy Structure 4 | . 4 . Lose Combat Pursuer 60 | . 30 30 Influence Decreases 505 | . 382 123 Time Decay 467 | . 382 85 Lost Part 38 | . . 38 Squads Dispatched 2 | . 2 . Investigation 1 | . 1 . Extermination . | . . . Reinforcement 1 | . 1 . Assault . | . . . Garrison . | . . . Intercept . | . . . Searches Triggered . | . . . Construction Impeded . | . . . Haulers Reinforced . | . . . Active Scanning Responses . | . . . Cargo Convoy Interrupts . | . . . Stealth | -11 -10 -10 --------- Run | Yrd Mat Sub Distress Signals . | . . . Communications Jammed . | . . . Distress Signals . | . . . Times Spotted 37 | . 17 20 Peak Tracking Total 5 | . 5 4 Tactical Retreats 3 | . 2 1 Traps | -11 -10 -10 ------- Run | Yrd Mat Sub Traps Triggered 1 | . 1 . Indirectly . | . . . Trap Hack Attempts . | . . . Triggered . | . . . Disarmed . | . . . Reprogrammed . | . . . Reused . | . . . Traps Extracted . | . . . Installed . | . . . Triggered . | . . . Machines | -11 -10 -10 ---------- Run | Yrd Mat Sub Machines Disabled 1 | . 1 . Max in Single Turn 1 | . 1 . Machines Repaired . | . . . Machines Dismantled . | . . . Machines Sabotaged . | . . . Overloaded Fab Kills . | . . . Hacking | -11 -10 -10 --------- Run | Yrd Mat Sub Machines Accessed 7 | . 5 2 Terminals 4 | . 4 . Fabricators . | . . . Repair Stations 1 | . 1 . Recycling Units . | . . . Scanalyzers . | . . . Garrison Access . | . . . Total Hacks 13 | . 11 2 Successful 8 | . 6 2 Failed 5 | . 5 . Catastrophic 2 | . 2 . Database Lockouts . | . . . Manual 5 | . 5 . Terminals 8 | . 8 . Fabricators . | . . . Repair Stations 3 | . 3 . Recycling Units . | . . . Scanalyzers . | . . . Garrison Access . | . . . Terminal Hacks 6 | . 4 2 Robot Analysis 3 | . 3 . Open Door 1 | . . 1 Locate Traps 1 | . 1 . Release Object 1 | . . 1 Fabricator Hacks . | . . . Repair Station Hacks 2 | . 2 . Scan Component 1 | . 1 . Repair 1 | . 1 . Recycling Unit Hacks . | . . . Scanalyzer . | . . . Garrison Access Hacks . | . . . Unauthorized Hacks . | . . . Terminals . | . . . Fabricators . | . . . Repair Stations . | . . . Recycling Units . | . . . Scanalyzers . | . . . Garrison Access . | . . . Data Cores Recovered . | . . . Used . | . . . Hacking Detections 4 | . 4 . Full Trace Events . | . . . Feedback Events . | . . . Feedback Blocked . | . . . Robot Schematics Acquired . | . . . Robots Built . | . . . Authchips . | . . . Time . | . . . Total Robot Build Rating . | . . . Part Schematics Acquired . | . . . Parts Built . | . . . Authchips . | . . . Time . | . . . Total Part Build Rating . | . . . Part Studies Acquired . | . . . Parts Repaired 1 | . 1 . Time 26 | . 26 . Parts Recycled . | . . . Recycled Matter . | . . . Retrieved Matter . | . . . Retrieved Components . | . . . Parts Scanalyzed . | . . . Part Schematics Acquired . | . . . Parts Damaged . | . . . Bothacking | -11 -10 -10 ------------ Run | Yrd Mat Sub Used RIF Installer . | . . . Robots Hacked . | . . . Non-combat . | . . . Combat . | . . . Robot Hacks Applied . | . . . Relay Couplers Released . | . . . Fabnet Peak Effective % . | . . . Robots Rewired . | . . . Allies Hacked . | . . . Hacks Repelled . | . . . Allies | -11 -10 -10 -------- Run | Yrd Mat Sub Total Allies . | . . . Largest Group . | . . . Highest-Rated Group . | . . . Highest-Rated Ally . | . . . Total Orders . | . . . Ally Attacks . | . . . Total Damage . | . . . Kills . | . . . Allies Corrupted . | . . . Allies Melted . | . . . Intel | -11 -10 -10 ------- Run | Yrd Mat Sub Active Infowar (turns) . | . . . Robot Analysis Total 3 | . 3 . Derelict Logs Recovered 1 | . . 1 Drone Launches . | . . . Drone Recoveries . | . . . Exploration | -11 -10 -10 ------------- Run | Yrd Mat Sub Turns Passed 3492 | 3 1749 1740 Spaces Moved 1847 | 1 746 1100 Core . | . . . Treads 861 | 1 746 114 Legs . | . . . Wheels 986 | . . 986 Hover . | . . . Flight . | . . . Fastest Speed 95 | 160 160 95 Average Speed 149 | 160 189 122 Slowest Speed 240 | 160 240 240 Overloaded Moves . | . . . Propulsion Burnouts . | . . . Robots Hopped . | . . . Potential Cave-ins . | . . . Cave-ins Triggered . | . . . Exploration Rate (%) 51 | 2 94 59 Regions Visited 2 Branch Regions 1 Pre-discovered Areas 2 | . . 2 Known Exits Taken . | . . . Unknown Exits Taken 2 | 1 1 . Scrap Searched 3 | . . 3 Spaces Dug . | . . . Terrain Destroyed 13 | . . 13 Melee . | . . . Projectile 13 | . . 13 AOE . | . . . Terrain Rammed . | . . . Walls Destroyed . | . . . Machines Disabled . | . . . Actions | -11 -10 -10 --------- Run | Yrd Mat Sub Total 2289 | 2 967 1320 Wait 179 | . 131 48 Move 1845 | . 745 1100 Hop . | . . . Pick Up 24 | . 14 10 Fast Attach 3 | . 1 2 Attach 8 | . 2 6 Detach . | . . . Swap 19 | 2 7 10 Drop 23 | . 9 14 Fire 168 | . 57 111 Melee 1 | . 1 . Ram . | . . . Kick . | . . . Crush . | . . . Escape Stasis . | . . . Rewire 4 | . . 4 Trap . | . . . Miscellaneous 15 | . . 15 Route ------- -11/Scrapyard -10/Materials (discovered 6 exits: [*Mat x3] / [*Min x2] / *Sub) -10/Subcaves (discovered 1 exit: [*Mat]) History --------- Turn | Location | Event 4 | -11/Scrapyard | Discovered new exit (range 0) 4 | -11/Scrapyard | Entered Materials 216 | -10/Materials | Discovered new exit (range 16) 315 | -10/Materials | Build established: Mutant 420 | -10/Materials | Discovered new exit (range 16) 543 | -10/Materials | Discovered new exit (range 6) 590 | -10/Materials | Discovered new exit (range 9) 604 | -10/Materials | Derelicts attacked the area 748 | -10/Materials | Repaired Lgt. Treads 789 | -10/Materials | Discovered new exit (range 16) 1050 | -10/Materials | Discovered new exit (range 9) 1753 | -10/Materials | Entered Subcaves 1754 | -10/Subcaves | Approached by a straggling Scientist 1817 | -10/Subcaves | Disturbed a concealed Subdweller 1879 | -10/Subcaves | Lost 7 parts (2u5w) 2153 | -10/Subcaves | Shifting Twisted Machinery released Sub. Machine Gun 2157 | -10/Subcaves | Shifting Twisted Machinery released Sub. Optics 2229 | -10/Subcaves | Learned location of Zion (-7) 2229 | -10/Subcaves | Met a Zionite searching for "candidates" 2593 | -10/Subcaves | Shifting Twisted Machinery released Flamer 2751 | -10/Subcaves | Core integrity fell below 50% 2788 | -10/Subcaves | Learned location of Storage (-9) 2799 | -10/Subcaves | Discovered new exit (range 8) 3007 | -10/Subcaves | Shifting Twisted Machinery released Piercing Trap 3024 | -10/Subcaves | Visited Clippyterm 3142 | -10/Subcaves | Core integrity fell below 20% 3186 | -10/Subcaves | A swath of the cavern ceiling suddenly collapsed 3291 | -10/Subcaves | Build established: Subdweller-Mutant 3493 | -10/Subcaves | Destroyed by Autobeam Turret with Autobeam Last Messages --------------- 03319_ Sub. Power Source shoots sparks and powers down. 03346_ 05-TRF(R): "LEAVESUB!" 03357_ AE-60G(u) tweaks Twisted Machinery. 03368_ AE-60G(u) builds Twisted Machinery. 03369_ 05-TRF(R) destroyed. 03371_ AE-60G(u) tweaks Twisted Machinery. 03375_ Scrap Shield Fragment affixed to Scrap Shield (+46). 03377_ Scrap Shield Fragment affixed to Scrap Shield (+21). 03378_ Acquired 30 matter. 03384_ Sub. Monowheel shoots sparks and powers down. 03387_ Dropped Broken Sub. Monowheel. 03477_ S-10 Pest destroyed. 03486_ Flight Unit fries itself beyond repair. 03486_ Acquired 30 matter. 03488_ Lgt. Assault Rifle fries itself beyond repair. Map ----- +----------------------------------------------------+ | ?????????????????????????????????????????????????? | | ?????????????????????????????????????????????????? | | ?????????????????????????????????????????????????? | | ?????????????????????????????????????????????????? | | ?????????????????????????????????????????????????? | | ?????????????????????????????????????????????????? | | ?????????????????????????????????????????????????? | | ?????????????????????????????????????????????????? | | ???????????????????????????????###???????????????? | | ??????????????????????????????## ####????????????? | | ?????????????????????????????## #????????????? | | ?????????????????????????????# #???????"""??? | | ?????????????????????????????# #???????#"""## | | ??????????????????####???????# ######??# """ | | ??????????????????#""""??????## ##?# "" | | ??????????????????#" "???????#""""" ### " "" | | ??????????????????#" t ??????##"" " ##" # | | ??????????????????? ??????#"""##### # | | ??????????????#????? ??????#""""#?## # | | ?????????????## ???? ??????#""""??# ## | | ?????????????? #??# ??????# ##?## #? | | ????????????# ## s??????# #??## ## | | ??????????????# "" s ?###### ###### | | ??????????????# % ## "# ## | | ???????????????????# " ### | | ???????????????????# @"" ## | | ???????????????????### "##### # | | ?????????????????????## ##???## ### | | ??????????????????????#" ??????## ## # # | | ??????????????????????" ???????# #### # | | ?????????????????????" ???????## ##?? # # | | ????????????????????"""""????????####???######## | | ???????????????????? ??????????????????????## | | ????????????????????####?????????????????????????# | | ?????????????????????????????????????????????????? | | ?????????????????????????????????????????????????? | | ?????????????????????????????????????????????????? | | ?????????????????????????????????????????????????? | | ?????????????????????????????????????????????????? | | ?????????????????????????????????????????????????? | | ?????????????????????????????????????????????????? | | ?????????????????????????????????????????????????? | | ?????????????????????????????????????????????????? | | ?????????????????????????????????????????????????? | | ?????????????????????????????????????????????????? | | ?????????????????????????????????????????????????? | | ?????????????????????????????????????????????????? | | ?????????????????????????????????????????????????? | | | | | +----------------------------------------------------+ Best States ------------- Heat Dissipation 25 Energy Generation 15 Energy Capacity 250 Matter Stores 300 Matter Capacity 300 Sight Range 16 Terrain Scan Density 10 Armor Coverage 800 Weapon Shielding 33 Evasion (%) 41 Recoil Reduction 2 Item Schematics ----------------- None Robot Schematics ------------------ None Fabricated ------------ Nothing Repaired ---------- Lgt. Treads | 58% | -10/Materials Studied --------- None Alien Tech Used ----------------- None Achievements -------------- None Challenges ------------ None Game ------ Seed FrostNetworkBlade Manual? 0 Play Time 00:27:08 Cumulative 157.2 hours Start 2026.07.02 @ 15:58:23 End 2026.07.02 @ 16:39:28 Sessions 1 Manual Loads 0 Difficulty Rogue Special Mode None Game No. 216 Rogue 216 Adventurer 0 Explorer 0 Win Type - Total 1 Types 1/0/0/0/0/0/0/0/0/0 Lore% 51 Gallery% 54 Achievement% 32 Wizard Run 0 Options --------- Layout 1 ASCII 0 Keyboard 0 Movement Mouse Keybinds 1 Fullscreen 1 Font 24/Smallcaps Map View 50x35 Zoom Use 0% Tactical HUD 1 Map Filters NONE Filters NONE Steam 1 RUN: 3617c940-439d-4e44-9110-570a7a401690